bitfinex/quotes_ETHUSD_20241223
["timestamp","ask_amount","ask_price","bid_price","bid_amount"]
[1734971108974,1.0454,3289.1,3288.0,0.8078]
[1734971109173,3.04055,3288.9,3288.0,0.8078]
[1734971110382,3.04062,3288.8,3288.0,0.8078]
[1734971111298,3.04097,3288.5,3287.3,0.8124]
[1734971111499,3.04097,3288.5,3287.4,0.50776166]
[1734971111500,0.03049866,3288.4,3287.4,0.50776166]
[1734971111892,3.04072,3288.7,3287.4,1.12230195]
[1734971112087,1.0454,3289.1,3287.5,0.8124]
[1734971112273,1.0454,3289.1,3287.6,0.03040861]
[1734971112474,1.0454,3289.1,3287.7,0.8124]
[1734971112794,1.0454,3289.1,3287.9,0.55]
[1734971113201,0.03049866,3289.4,3288.2,8.95]
[1734971113369,0.03049866,3289.4,3287.8,0.38428086]
[1734971113370,0.8078,3291.5,3289.4,4.3624]
[1734971113684,6.5181998,3291.7,3289.4,7.40246]
[1734971113685,0.49997687,3289.5,3289.4,7.40246]
[1734971113889,0.28588914,3291.3,3289.7,0.8124]
[1734971114115,0.28588914,3291.3,3290.0,0.55]
[1734971114398,1.0527,3291.4,3290.0,0.98624]
[1734971114571,1.08319866,3291.4,3290.0,0.98624]
[1734971114770,4.12141866,3291.4,3290.0,0.98624]
[1734971115406,3.06871866,3291.4,3290.0,0.98624]
[1734971115585,4.09145,3291.6,3290.2,0.55]
[1734971115913,4.09145,3291.6,3290.3,0.03038811]
[1734971116073,1.08389866,3291.6,3290.2,0.55]
[1734971116440,3.0383,3291.4,3290.2,0.55]
[1734971116627,0.03049866,3291.3,3290.2,0.55]
[1734971116971,4.09145,3291.6,3290.2,0.55]
[1734971117192,0.03049866,3291.5,3290.2,0.55]
[1734971117391,3.03821,3291.5,3290.2,0.55]
[1734971117613,3.06875866,3291.4,3290.2,0.55]
[1734971117822,3.03839,3291.3,3290.2,0.55]
[1734971118004,0.03049866,3291.2,3290.2,0.55]
[1734971118329,3.03839,3291.3,3290.2,0.55]
[1734971118643,1.0534,3291.6,3290.2,0.55]
[1734971119239,1.0016,3292.0,3290.5,0.55]
[1734971119443,0.24999732,3293.1,3290.5,0.55]
[1734971119444,1.32812422,3292.4,3290.9,0.55]
[1734971119736,0.03049866,3292.3,3290.7,3.0]
[1734971119942,3.03785,3291.8,3290.7,0.55]
[1734971120106,0.32652422,3292.2,3290.8,0.0303846]
[1734971120286,1.0016,3293.4,3290.8,0.0303846]
[1734971120287,0.03049866,3293.3,3291.8,0.55]
[1734971120489,3.06696866,3293.3,3292.0,0.55]
[1734971120820,3.03656,3293.2,3292.0,0.55]
[1734971121132,1.0016,3293.4,3292.0,0.55]
[1734971121849,3.03657,3293.2,3292.0,0.55]
[1734971122000,0.03049866,3293.1,3292.0,0.55]
[1734971122597,0.03049866,3293.2,3292.0,0.55]
[1734971123328,4.03797,3293.4,3292.0,0.55]
[1734971123533,1.0016,3293.4,3292.0,0.55]
[1734971124566,1.0016,3293.4,3292.2,0.55]
[1734971125660,1.0016,3293.4,3292.3,0.03036916]
[1734971125871,1.31667422,3294.7,3292.5,0.55]
[1734971126036,0.61084229,3294.0,3292.5,0.55]
[1734971126380,4.04692,3294.0,3292.7,0.55]
[1734971127723,3.03593,3293.9,3292.7,0.55]
[1734971127921,3.06642866,3293.9,3292.7,0.55]
[1734971128354,0.03049866,3293.9,3292.4,0.8124]
[1734971128759,3.03592,3293.9,3292.4,0.8124]
[1734971128995,3.6193076,3294.4,3292.6,0.8124]
[1734971129272,3.03506,3294.9,3292.6,0.8124]
[1734971129273,4.0462,3294.8,3292.9,0.8124]
[1734971129481,1.0111,3294.8,3293.0,1.30659712]
[1734971129625,1.0111,3294.8,3293.2,8.95]
[1734971129826,1.0111,3295.3,3293.7,0.55]
[1734971130061,1.0111,3295.3,3293.8,3.0]
[1734971130222,1.0111,3295.3,3294.1,0.55]
[1734971130427,1.21581,3296.1,3294.5,3.0]
[1734971130694,3.03371,3296.3,3294.7,0.55]
[1734971130982,3.06420866,3296.3,3294.7,0.55]
[1734971131278,0.1654251,3296.7,3295.3,0.8124]
[1734971131598,0.1654251,3296.7,3295.4,0.55]
[1734971132259,0.1654251,3296.7,3295.5,9.7624]
[1734971132435,1.0057,3296.5,3295.1,0.8124]
[1734971132642,3.06416866,3296.4,3295.1,0.8124]
[1734971132989,3.06416866,3296.4,3294.5,0.8124]
[1734971132990,1.0057,3295.7,3294.5,0.8124]
[1734971133142,1.05101729,3295.7,3294.5,0.8124]
[1734971133346,3.03448,3295.5,3294.5,0.8124]
[1734971133669,0.74544307,3295.7,3294.5,0.8124]
[1734971133670,3.74544307,3295.7,3294.5,0.8124]
[1734971133868,3.03446,3295.5,3294.5,0.8124]
[1734971134091,3.03454,3295.4,3294.5,0.8124]
[1734971134287,0.74544307,3295.7,3293.9,1.0517]
[1734971134452,3.03453,3295.4,3293.9,1.0517]
[1734971134645,3.03467,3295.3,3293.9,1.0517]
[1734971135242,3.03453,3295.4,3293.9,1.0517]
[1734971135443,3.03463,3295.3,3294.0,0.55]
[1734971135643,3.03463,3295.3,3294.0,0.71017]
[1734971136087,3.03459,3295.4,3294.0,0.71017]
[1734971136294,3.03475,3295.2,3294.0,0.71017]
[1734971137169,3.03455,3295.4,3294.0,0.71017]
[1734971138423,0.61256459,3295.6,3294.0,0.71017]
[1734971138633,3.64692459,3295.6,3294.1,0.176187]
[1734971138769,0.61256459,3295.6,3294.3,0.9757]
[1734971139134,0.61256459,3295.6,3294.4,0.55]
[1734971139686,1.0374,3296.6,3294.9,0.55]
[1734971139890,4.07083,3296.6,3295.1,0.55]
[1734971140138,4.07083,3296.6,3295.4,0.969]
[1734971140502,1.65185052,3296.6,3295.5,0.03034107]
[1734971140718,1.0374,3296.6,3295.4,0.969]
[1734971140919,4.07083,3296.6,3295.4,0.969]
[1734971141505,0.1654251,3296.7,3295.5,0.58034043]
[1734971141707,0.1654251,3296.7,3295.7,0.969]
[1734971141926,0.1654251,3296.7,3295.8,0.55]
[1734971143309,0.1654251,3296.7,3296.2,0.55]
[1734971143544,0.1654251,3296.7,3296.5,0.9544]
[1734971145645,0.1654251,3296.7,3296.6,0.55]
[1734971145944,0.1654251,3296.7,3296.6,4.95497671]
[1734971146441,0.30557422,3297.9,3296.6,4.95497671]
[1734971146669,0.9264,3298.1,3296.6,4.95497671]
[1734971147018,0.9264,3298.1,3296.6,13.90497671]
[1734971147234,0.9264,3298.1,3296.6,10.35497671]
[1734971147437,3.03279,3297.3,3296.5,0.9544]
[1734971147834,0.9627,3297.3,3296.5,0.9544]
[1734971148642,3.99548,3297.3,3296.5,0.9544]
[1734971148881,3.03278,3297.3,3296.5,0.9544]
[1734971149042,3.99517,3297.7,3295.9,0.9441]
[1734971149043,3.0,3297.5,3295.9,0.9441]
[1734971149368,3.0,3297.5,3296.0,0.39441]
[1734971149369,3.03269,3297.4,3296.0,0.39441]
[1734971149532,3.03269,3297.4,3295.9,0.9441]
[1734971149533,3.9572,3297.3,3295.9,0.9441]
[1734971149734,0.9572,3297.3,3295.9,0.9441]
[1734971150171,3.0,3297.2,3295.9,0.9441]
[1734971151022,1.53283379,3297.7,3296.0,0.39441]
[1734971151259,4.53283379,3297.7,3296.2,0.9235]
[1734971151574,4.53283379,3297.7,3296.3,0.9409]
[1734971151575,0.61213379,3297.7,3296.3,0.9409]
[1734971151988,3.03279,3297.3,3296.3,0.9409]
[1734971152634,3.03288,3297.2,3296.3,0.9409]
[1734971152969,4.05281,3297.4,3296.3,0.9409]
[1734971154148,1.0201,3297.4,3296.3,0.9409]
[1734971154325,3.0327,3297.4,3296.3,0.9409]
[1734971154528,3.0,3297.3,3296.3,0.9409]
[1734971154727,3.03271,3297.4,3296.3,0.9409]
[1734971154923,3.61213379,3297.7,3296.3,0.9409]
[1734971154924,3.0,3297.6,3296.3,0.9409]
[1734971155249,6.03252,3297.6,3296.3,0.9409]
[1734971156264,6.03252,3297.6,3296.0,1.01635698]
[1734971156265,0.57021072,3299.8,3297.6,0.9239]
[1734971156445,0.57021072,3299.8,3298.1,0.55]
[1734971156743,0.57021072,3299.8,3298.4,0.9239]
[1734971156928,0.2850929,3299.8,3298.4,0.9239]
[1734971157378,0.1654251,3299.9,3298.5,3.03167]
[1734971157677,0.1654251,3299.9,3299.0,0.55]
[1734971157909,0.1654251,3299.9,3299.3,0.55]
[1734971158024,0.1654251,3299.9,3299.4,0.15299]
[1734971158476,0.1654251,3299.9,3299.4,4.04102954]
[1734971158631,0.1654251,3299.9,3299.4,1.01019954]
[1734971158833,0.1654251,3299.9,3299.5,0.55]
[1734971159032,0.1654251,3299.9,3299.6,0.9598]
[1734971159655,0.1654251,3299.9,3299.8,0.9598]
[1734971159895,0.1654251,3299.9,3299.8,1.5098]
[1734971160045,0.9817,3301.5,3299.8,1.66380975]
[1734971160247,3.02911,3301.3,3299.8,2.28295845]
[1734971160568,3.0293,3301.1,3299.8,1.73295845]
[1734971160746,0.9817,3301.5,3299.8,1.11380975]
[1734971161088,3.02901,3301.4,3298.4,0.9945]
[1734971161229,3.03014,3300.2,3298.5,0.03030432]
[1734971161429,3.95874,3300.2,3298.4,0.9945]
[1734971161714,3.03057,3299.7,3298.4,0.9945]
[1734971161866,3.03104,3299.2,3298.4,0.9945]
[1734971162086,3.9508,3299.2,3298.1,1.24338899]
[1734971162249,3.03122,3299.0,3298.1,1.65230624]
[1734971162445,0.9508,3299.2,3298.1,1.65230624]
[1734971162782,3.0313,3299.0,3298.1,0.40891725]
[1734971163078,3.9508,3299.2,3297.3,0.59880493]
[1734971163079,3.0,3298.7,3297.3,0.59880493]
[1734971163261,3.0,3298.5,3296.8,0.9371]
[1734971163464,3.0,3298.3,3296.8,0.9371]
[1734971163668,3.0,3298.9,3297.1,0.943]
[1734971163988,3.60232874,3298.9,3297.3,0.943]
[1734971164330,0.60232874,3298.9,3297.3,0.943]
[1734971164537,3.03168,3298.5,3297.3,0.943]
[1734971165060,3.0,3298.7,3297.3,0.943]
[1734971165389,3.0,3298.8,3297.3,0.943]
[1734971165594,3.0,3298.8,3297.4,0.19626228]
[1734971165797,0.60232874,3298.9,3297.4,0.19626228]
[1734971165951,3.0,3298.7,3297.4,0.19626228]
[1734971166350,0.60232874,3298.9,3297.4,0.19626228]
[1734971166546,3.0316,3298.6,3297.4,0.19626228]
[1734971167388,3.03142,3298.8,3297.4,0.19626228]
[1734971167594,3.0,3298.7,3297.4,0.19626228]
[1734971168103,0.9508,3299.2,3297.4,0.19626228]
[1734971168400,3.03103,3299.3,3297.6,9.9451]
[1734971168702,3.02976,3300.6,3298.0,0.55]
[1734971168914,3.03032,3300.0,3298.2,3.0]
[1734971169231,3.95864,3300.5,3298.3,0.60623512]
[1734971169357,3.63594116,3299.7,3298.2,0.9951]
[1734971169559,0.60535116,3299.7,3298.2,0.9951]
[1734971169986,0.60535116,3299.7,3298.3,3.0]
[1734971170196,3.02955,3300.9,3298.9,3.03127]
[1734971170371,3.02955,3300.9,3299.2,0.9713]
[1734971170588,0.9833,3301.0,3299.3,0.15213]
[1734971170805,3.02956,3300.8,3299.3,0.15213]
[1734971170962,3.02967,3300.7,3299.3,0.15213]
[1734971171305,0.9833,3301.0,3299.3,0.15213]
[1734971171306,3.03012,3300.2,3299.3,0.15213]
[1734971171474,3.0,3300.9,3299.3,0.15213]
[1734971171682,3.0,3300.7,3299.3,0.15213]
[1734971171881,4.0127,3301.0,3299.4,0.9787]
[1734971172209,1.0347,3301.9,3299.5,0.9787]
[1734971172361,3.02939,3301.0,3299.5,0.9787]
[1734971172765,1.2847,3301.9,3299.5,0.9787]
[1734971172989,0.60723623,3300.9,3299.5,0.9787]
[1734971173212,3.02947,3301.0,3299.6,0.15737137]
[1734971173376,3.0,3300.9,3299.6,0.15737137]
[1734971173577,0.60622449,3301.1,3299.6,0.15737137]
[1734971173763,3.0,3300.8,3299.6,0.15737137]
[1734971173963,1.73392572,3300.8,3299.6,0.15737137]
[1734971174781,3.0295,3300.9,3299.6,0.15737137]
[1734971175317,3.02925,3301.2,3299.6,0.15737137]
[1734971175540,0.005,3301.7,3299.8,0.9975]
[1734971175720,3.03375,3301.7,3300.0,0.9975]
[1734971175869,0.005,3301.7,3300.0,0.9975]
[1734971176409,1.52904087,3301.6,3298.9,0.9877]
[1734971176705,1.52904087,3301.6,3299.3,1.24338899]
[1734971176865,3.0,3300.9,3299.4,0.9877]
[1734971177061,6.02961,3300.8,3299.5,0.2231089]
[1734971177266,0.55,3301.5,3299.5,0.2231089]
[1734971177267,3.02984,3300.5,3299.5,0.2231089]
[1734971177678,3.02968,3300.7,3299.4,0.9877]
[1734971178080,3.59783846,3300.9,3298.9,3.64606708]
[1734971178081,6.02948,3300.9,3299.5,0.03030197]
[1734971178316,3.0,3300.8,3299.3,0.9589]
[1734971178472,3.0,3300.8,3299.4,1.5089]
[1734971178887,3.02966,3300.7,3299.4,1.5089]
[1734971179123,3.0,3301.3,3299.4,0.9589]
[1734971179124,0.55,3300.9,3299.4,0.9589]
[1734971179282,3.02998,3300.4,3299.4,0.9589]
[1734971179702,3.0,3300.7,3299.4,0.9589]
[1734971179869,3.0293,3301.1,3298.6,0.03030492]
[1734971179870,0.005,3301.7,3299.9,0.9589]
[1734971180068,0.005,3301.7,3300.1,0.9589]
[1734971180378,0.005,3301.7,3300.1,0.98919518]
[1734971180929,0.005,3301.7,3300.5,0.9709]
[1734971181296,0.005,3301.7,3300.7,0.9709]
[1734971181918,3.02886,3301.6,3300.7,0.9709]
[1734971182424,3.03379,3301.7,3300.7,0.9709]
[1734971182630,3.03377,3301.7,3300.7,0.9709]
[1734971183114,3.02884,3301.6,3300.7,0.9709]
[1734971183322,0.005,3301.7,3300.7,0.9709]
[1734971185724,1.0344,3301.6,3299.8,1.0152]
[1734971185924,0.005,3301.7,3300.1,3.03021]
[1734971186223,0.005,3301.7,3300.3,1.0152]
[1734971186628,0.005,3301.7,3300.5,0.9543]
[1734971186779,0.005,3301.7,3300.6,0.98459082]
[1734971187125,0.005,3301.7,3300.6,0.9543]
[1734971188226,3.02702,3303.6,3301.4,3.0]
[1734971188426,3.02683,3303.8,3301.6,0.9576]
[1734971188582,3.02683,3303.8,3301.8,0.9759]
[1734971188780,0.37691792,3305.3,3303.0,3.13567969]
[1734971188977,1.61803094,3305.2,3304.2,0.9759]
[1734971189199,1.61803094,3305.2,3304.6,0.9759]
[1734971189484,0.37691792,3305.3,3304.8,3.9865]
[1734971189721,0.1654251,3306.4,3305.0,0.9606]
[1734971189924,0.1654251,3306.4,3305.2,1.0193]
[1734971190122,0.1654251,3306.4,3305.2,1.0495451]
[1734971190321,0.1654251,3306.4,3305.5,1.0193]
[1734971191438,0.24999732,3308.2,3305.5,1.0193]
[1734971191439,0.66542242,3309.7,3306.5,1.0072]
[1734971191594,0.66542242,3309.7,3306.5,1.0374326]
[1734971191595,3.02285,3308.2,3306.5,1.0374326]
[1734971191926,3.02285,3308.2,3306.5,1.0072]
[1734971192133,0.252285,3308.1,3306.5,1.0072]
[1734971192285,3.275175,3308.1,3306.5,1.0072]
[1734971192481,0.60532421,3308.8,3306.6,0.9585]
[1734971192682,3.02101,3310.2,3307.1,0.9585]
[1734971193030,3.02137,3309.8,3307.3,0.9585]
[1734971193233,0.998,3309.9,3307.3,0.9585]
[1734971193390,3.0218,3309.3,3307.3,0.9585]
[1734971193734,3.02158,3309.6,3307.3,0.9585]
[1734971193909,3.02201,3309.1,3307.3,0.9585]
[1734971194118,3.02207,3309.0,3307.3,0.9585]
[1734971194919,3.02198,3309.1,3307.3,0.98872793]
[1734971195085,3.0,3309.4,3307.3,0.98872793]
[1734971195086,3.02208,3309.0,3307.3,0.98872793]
[1734971195289,3.02223,3308.9,3307.3,0.9585]
[1734971195751,3.02181,3309.3,3307.3,0.9585]
[1734971195752,3.0,3309.2,3307.3,0.9585]
[1734971196033,3.02193,3309.2,3307.3,0.9585]
[1734971196242,3.02198,3309.1,3307.4,0.0302285]
[1734971196405,3.0,3309.5,3307.5,0.9854]
[1734971196607,3.02145,3309.7,3307.7,0.9854]
[1734971196842,3.02119,3310.0,3308.1,0.9854]
[1734971197106,3.02145,3309.7,3308.1,0.9854]
[1734971197326,3.02118,3310.0,3308.1,0.9854]
[1734971197506,0.61256847,3310.0,3308.3,0.9906]
[1734971197712,3.02064,3310.6,3308.3,0.9906]
[1734971197713,3.1951241,3310.1,3308.3,0.9906]
[1734971198302,3.1951241,3310.1,3308.4,0.03021645]
[1734971198543,3.1951241,3310.1,3308.4,1.0335]
[1734971198750,0.1740441,3310.1,3308.4,1.0335]
[1734971198899,3.02126,3309.9,3308.4,1.0335]
[1734971199225,3.02136,3309.8,3308.4,1.0335]
[1734971199610,3.02159,3309.6,3308.4,1.0335]
[1734971199921,0.1740441,3310.1,3308.4,1.0335]
[1734971200094,3.02157,3309.6,3308.4,1.0335]
[1734971200298,3.0,3309.9,3308.4,1.0335]
[1734971200507,3.02162,3309.5,3308.4,1.0335]
[1734971200739,3.0216,3309.5,3308.4,1.0335]
[1734971201253,3.02171,3309.4,3308.4,1.0335]
[1734971201558,3.0,3309.9,3308.4,1.0335]
[1734971201559,3.0,3309.6,3308.4,1.0335]
[1734971201711,3.0,3310.0,3308.4,1.0335]
[1734971201911,6.02117,3310.0,3308.5,0.03022176]
[1734971202117,0.1740441,3310.1,3308.1,1.0103]
[1734971202409,0.1740441,3310.1,3308.3,3.02269]
[1734971202643,0.1740441,3310.1,3308.5,1.0103]
[1734971202846,0.1740441,3310.1,3308.6,0.40103]
[1734971203142,0.1740441,3310.1,3308.5,1.0103]
[1734971203143,3.02114,3310.0,3308.5,1.0103]
[1734971203348,3.02142,3309.7,3308.5,1.0103]
[1734971203644,3.0,3310.0,3308.5,1.0103]
[1734971203845,3.02152,3309.6,3308.5,1.0103]
[1734971204054,3.02152,3309.6,3307.0,3.13567969]
[1734971204055,1.0361,3309.3,3305.0,4.51882901]
[1734971204350,9.06507,3309.4,3305.9,1.0015]
[1734971204351,3.02365,3307.3,3305.9,1.0015]
[1734971204551,3.02389,3307.0,3305.9,1.0015]
[1734971204706,0.03022417,3306.9,3305.9,1.0015]
[1734971204906,3.02392,3307.0,3305.9,1.0015]
[1734971205247,3.02358,3307.4,3305.9,1.0015]
[1734971205248,3.05420417,3306.9,3305.9,1.0015]
[1734971205755,3.0,3307.2,3305.9,1.0015]
[1734971205917,6.02373,3307.2,3305.9,1.0015]
[1734971206247,1.0361,3308.2,3306.0,0.03024268]
[1734971206448,1.0361,3308.2,3306.0,1.0188]
[1734971206449,0.55,3308.0,3306.0,1.0188]
[1734971206633,3.02363,3307.3,3306.0,1.0188]
[1734971206831,0.55,3308.0,3306.0,1.0188]
[1734971206832,3.05399417,3307.2,3306.0,1.0188]
[1734971207034,0.03022417,3307.2,3306.0,1.0188]
[1734971207439,3.1951341,3310.1,3306.8,3.97551]
[1734971207636,0.03022417,3309.8,3307.2,0.9515]
[1734971207821,3.02194,3309.2,3307.3,1.0388]
[1734971208151,0.03022417,3309.1,3307.3,1.0388]
[1734971208333,3.02209,3309.0,3307.3,1.0388]
[1734971208740,3.02115,3310.0,3306.6,3.27418]
[1734971208741,3.02072,3310.5,3307.5,1.0296]
[1734971209036,3.02123,3309.9,3307.8,1.0296]
[1734971209238,3.02159,3309.6,3307.8,1.0296]
[1734971209552,3.02159,3309.6,3307.9,0.9719]
[1734971209553,0.03022417,3309.6,3307.9,0.9719]
[1734971209851,3.02161,3309.5,3307.9,0.9719]
[1734971210023,3.0218,3309.3,3307.9,0.9719]
[1734971210407,0.03022417,3309.4,3307.9,0.9719]
[1734971210706,3.02226,3308.8,3307.9,0.9719]
[1734971211052,0.03022417,3308.7,3307.9,0.9719]
[1734971211347,3.0,3309.1,3307.9,0.9719]
[1734971211647,0.55,3309.7,3307.9,0.8219]
[1734971211822,3.0,3309.0,3307.9,0.8219]
[1734971212051,0.03022417,3308.9,3307.9,0.8219]
[1734971212345,3.02226,3308.8,3307.9,0.8219]
[1734971212552,0.03022417,3309.2,3307.9,0.8219]
[1734971212782,3.02261,3308.4,3307.9,0.8219]
[1734971212993,0.03022417,3308.3,3306.5,3.63467628]
[1734971213165,0.03022417,3308.3,3306.6,0.36346763]
[1734971213352,6.05265417,3308.6,3306.7,3.05433248]
[1734971213668,3.0,3309.3,3307.5,3.02342]
[1734971213980,0.03022417,3309.3,3307.5,3.02342]
[1734971214185,3.05201417,3309.3,3307.5,3.02342]
[1734971214390,3.05201417,3309.3,3307.6,3.02329]
[1734971214391,0.03022417,3309.3,3307.6,3.02329]
[1734971214682,0.03022417,3309.3,3307.8,0.9764]
[1734971214683,3.05201417,3309.3,3307.8,0.9764]
[1734971214850,3.02133,3309.8,3307.8,0.9764]
[1734971214851,3.02163,3309.5,3307.8,0.9764]
[1734971215371,3.0,3309.4,3307.8,0.9764]
[1734971215577,3.02167,3309.5,3307.8,0.9764]
[1734971215884,3.03022417,3309.4,3307.8,0.9764]
[1734971216084,0.03022417,3309.4,3307.8,3.99954]
[1734971216562,3.03022417,3309.4,3307.8,0.9764]
[1734971216880,3.0,3309.2,3307.8,0.9764]
[1734971217086,0.03022417,3309.1,3307.8,0.9764]
[1734971217289,3.02238,3308.7,3307.8,0.9764]
[1734971217587,3.005,3309.9,3307.8,0.9764]
[1734971217751,3.02178,3309.4,3307.8,0.9764]
[1734971217938,3.03022417,3309.3,3307.8,0.9764]
[1734971218138,3.0,3309.3,3307.8,0.9764]
[1734971218589,3.02182,3309.3,3307.8,0.9764]
[1734971218739,3.0,3309.2,3307.8,0.9764]
[1734971219078,3.0,3309.4,3307.8,0.9764]
[1734971219281,3.0,3309.4,3307.8,3.99954]
[1734971219578,3.0,3309.6,3308.0,3.9739]
[1734971219953,3.0,3309.5,3308.0,3.9739]
[1734971220152,6.02169,3309.5,3308.0,0.951]
[1734971220465,0.03022417,3309.4,3308.0,0.951]
[1734971220849,0.005,3309.9,3308.0,0.951]
[1734971220850,3.0,3309.2,3308.0,0.951]
[1734971221051,3.61817497,3309.2,3308.0,0.951]
[1734971221253,3.0,3309.2,3308.0,0.951]
[1734971221689,3.0,3309.1,3308.0,0.951]
[1734971221937,3.0,3308.8,3308.0,0.951]
[1734971222097,0.03022417,3308.7,3308.0,0.951]
[1734971222303,0.03022417,3308.7,3306.6,3.02419]
[1734971222592,3.02242,3308.6,3306.8,1.0313]
[1734971222742,0.03022417,3308.5,3306.8,1.0313]
[1734971222945,3.02287,3308.2,3306.8,1.0313]
[1734971223189,0.03022417,3308.1,3306.8,1.0313]
[1734971223393,3.0,3308.3,3306.8,1.0313]
[1734971223601,3.02352,3307.5,3306.8,1.0313]
[1734971223743,3.02349,3307.5,3306.8,1.0313]
[1734971224095,3.02352,3307.4,3306.8,1.0313]
[1734971224247,0.03022417,3307.3,3306.8,1.0313]
[1734971224577,3.02423,3306.7,3305.1,0.9731]
[1734971224786,3.02434,3306.5,3305.1,0.9731]
[1734971225092,0.03022417,3306.4,3305.1,0.9731]
[1734971225443,3.02445,3306.4,3305.1,0.9731]
[1734971225740,3.02436,3306.5,3305.1,0.9731]
[1734971225908,3.02454,3306.3,3305.1,0.9731]
[1734971226051,3.02367,3307.3,3305.3,0.9731]
[1734971226248,3.02297,3308.0,3305.6,0.9731]
[1734971226545,3.0228,3308.2,3306.5,0.9731]
[1734971226998,3.02305,3308.0,3306.5,0.9731]
[1734971227202,3.02258,3308.5,3306.5,0.9731]
[1734971227203,0.5915785,3308.4,3306.5,0.9731]
[1734971227375,3.02334,3307.6,3306.5,0.9731]
[1734971227699,0.5915785,3308.4,3306.5,0.9731]
[1734971227875,3.02355,3307.4,3306.5,0.9731]
[1734971228284,3.02361,3307.4,3306.5,0.9731]
[1734971228600,3.0,3308.6,3306.5,0.9731]
[1734971228754,3.0,3308.5,3306.5,3.99739]
[1734971228951,3.02278,3308.3,3306.7,3.02414]
[1734971229155,0.41487215,3308.8,3306.1,0.03023701]
[1734971229156,3.02252,3308.5,3306.9,4.00985]
[1734971229387,3.02252,3308.5,3307.0,0.03023346]
[1734971229565,3.02252,3308.5,3306.9,4.00985]
[1734971229783,3.02263,3308.4,3307.0,0.400985]
[1734971230103,3.02271,3308.3,3306.9,0.9859]
[1734971230320,3.023,3308.0,3306.9,0.9859]
[1734971230602,3.02254,3308.5,3306.9,0.9859]
[1734971231509,0.9671,3309.2,3307.1,0.9548]
[1734971231673,3.02196,3309.1,3307.4,1.0565]
[1734971231861,3.02224,3308.8,3307.4,1.464509]
[1734971232061,3.02237,3308.7,3307.4,1.0565]
[1734971233197,1.56735232,3309.2,3307.4,1.0565]
[1734971233397,0.9671,3309.2,3307.4,1.0565]
[1734971234212,3.02226,3308.8,3307.4,1.0565]
[1734971234421,3.02232,3308.8,3307.4,1.0565]
[1734971234714,3.0225,3308.6,3307.4,1.0565]
[1734971235070,3.02181,3309.3,3307.6,0.9835]
[1734971235277,3.02164,3309.5,3307.8,0.9997]
[1734971235468,3.02173,3309.4,3307.8,0.9997]
[1734971236591,3.02179,3309.3,3307.8,0.9997]
[1734971236793,3.02179,3309.3,3308.3,0.9843]
[1734971237046,4.00387,3309.8,3308.3,0.9843]
[1734971237047,3.02134,3309.8,3308.3,0.9843]
[1734971237174,0.59621695,3309.7,3308.3,0.9843]
[1734971237376,0.005,3309.9,3308.4,0.03022137]
[1734971237608,0.005,3309.9,3308.5,0.9843]
[1734971237811,0.005,3309.9,3308.7,0.9843]
[1734971238203,3.02142,3309.7,3308.7,0.9843]
[1734971238383,3.02169,3309.4,3308.7,0.9843]
[1734971238586,3.02161,3309.5,3308.7,0.9843]
[1734971238788,3.0,3309.7,3308.6,1.23685142]
[1734971238987,3.0216,3309.5,3308.6,1.23685142]
[1734971239280,3.0216,3309.5,3308.3,3.53250284]
[1734971239281,3.02172,3309.4,3308.3,2.29565142]
[1734971239726,3.02155,3309.6,3308.3,2.29565142]
[1734971240087,3.02172,3309.4,3308.3,2.29565142]
[1734971240294,3.02147,3309.7,3308.3,2.29565142]
[1734971240493,0.005,3309.9,3308.3,2.29565142]
[1734971240697,3.02153,3309.6,3308.3,2.29565142]
[1734971241393,3.02153,3309.6,3308.4,3.82949137]
[1734971241593,3.02153,3309.6,3308.5,1.0038]
[1734971242185,0.005,3309.9,3308.6,3.02242]
[1734971242380,0.005,3309.9,3308.9,1.0167]
[1734971242580,0.005,3309.9,3309.1,0.60517177]
[1734971242786,0.005,3309.9,3309.1,1.0167]
[1734971243428,0.005,3309.9,3309.4,4.02228]
[1734971243632,0.005,3309.9,3309.4,1.0006]
[1734971245006,0.005,3309.9,3309.4,1.2043656]
[1734971245523,3.02052,3310.7,3309.4,1.0006]
[1734971245721,3.02063,3310.6,3309.4,1.0006]
[1734971246651,3.02096,3310.3,3309.4,1.0006]
[1734971246948,3.02032,3310.9,3309.4,1.0006]
[1734971247149,3.0206,3310.6,3309.4,1.0006]
[1734971247324,0.61553471,3311.0,3309.4,1.0006]
[1734971247660,3.02061,3310.6,3309.4,1.0006]
[1734971247840,3.61553471,3311.0,3309.4,1.0006]
[1734971248052,1.0613,3310.8,3309.4,1.0006]
[1734971248246,3.02097,3310.2,3309.4,1.0006]
[1734971248443,3.0,3310.9,3309.4,1.0006]
[1734971248617,3.02041,3310.8,3309.4,1.0006]
[1734971248973,3.02079,3310.4,3309.4,1.0006]
[1734971249108,3.02076,3310.5,3309.4,1.0006]
[1734971250312,4.02203792,3311.2,3309.4,1.0006]
[1734971250727,3.02042,3310.8,3309.4,1.0006]
[1734971251129,3.02023,3311.1,3309.6,0.9934]
[1734971251328,4.02197792,3311.2,3309.6,0.9934]
[1734971251659,1.00191792,3311.2,3309.6,0.9934]
[1734971252043,3.02044,3310.8,3309.6,0.9934]
[1734971252364,1.00191792,3311.2,3309.7,1.02361008]
[1734971252828,1.00191792,3311.2,3309.9,0.9934]
[1734971253031,1.00191792,3311.2,3310.2,0.9934]
[1734971253234,1.00191792,3311.2,3310.5,0.9934]
[1734971253429,1.00191792,3311.2,3310.6,0.9934]